fUSD/lending_fUSD_20250602
["ID","MTS","AMOUNT","RATE_DAILY","PERIOD"]
[363774214,1748867450768,-990.37,0.00019315,2]
[363774216,1748867450777,-420.0,0.00019315,2]
[363774218,1748867450787,-420.0,0.00019315,2]
[363774220,1748867450796,-467.8,0.00019315,2]
[363774222,1748867450806,-420.0,0.00019315,2]
[363774223,1748867450816,-420.0,0.00019315,2]
[363774225,1748867450825,-184.92629254,0.00019315,2]
[363774227,1748867450834,-420.0,0.00019315,2]
[363774229,1748867450845,-420.0,0.00019315,2]
[363774231,1748867450855,-1256.31,0.00019315,2]
[363774233,1748867450865,-420.0,0.00019315,2]
[363774235,1748867450876,-420.0,0.00019315,2]
[363774237,1748867450887,-420.0,0.00019315,2]
[363774239,1748867450898,-420.0,0.00019315,2]
[363774242,1748867450909,-565.39,0.00019315,2]
[363774244,1748867450919,-420.0,0.00019315,2]
[363774246,1748867450929,-424.08413492,0.00019315,2]
[363774248,1748867450939,-325.96875002,0.00019315,2]
[363774250,1748867450949,-743.93,0.00019315,2]
[363774252,1748867450958,-420.0,0.00019315,2]
[363774254,1748867450968,-1533.64,0.00019315,2]
[363774256,1748867450979,-420.0,0.00019315,2]
[363774258,1748867450989,-420.0,0.00019315,2]
[363774260,1748867450999,-723.86,0.00019315,2]
[363774262,1748867451010,-1076.54,0.00019315,2]
[363774264,1748867451020,-3758.50160772,0.00019352,2]
[363774266,1748867451032,-2122.4532337,0.00019352,2]
[363774268,1748867451042,-196.4127791,0.00019352,2]
[363774270,1748867451051,-1600.0,0.000194,7]
[363774272,1748867451061,-3758.50160772,0.00019443,2]
[363774274,1748867451071,-2122.4532337,0.00019443,2]
[363774276,1748867451081,-500.0,0.00019451,2]
[363774278,1748867451091,-500.0,0.00019451,2]
[363774280,1748867451101,-500.0,0.00019451,2]
[363774282,1748867451112,-219.0510649,0.00019451,2]
[363774284,1748867451122,-159.62100447,0.00019451,2]
[363774286,1748867451132,-500.0,0.00019451,2]
[363774288,1748867451142,-500.0,0.00019451,2]
[363774290,1748867451151,-500.0,0.00019451,2]
[363774292,1748867451161,-500.0,0.00019451,2]
[363774294,1748867451171,-500.0,0.00019451,2]
[363774296,1748867451180,-500.0,0.00019451,2]
[363774298,1748867451190,-500.0,0.00019451,2]
[363774300,1748867451200,-500.0,0.00019451,2]
[363774302,1748867451209,-500.0,0.00019451,2]
[363774304,1748867451219,-500.0,0.00019451,2]
[363774306,1748867451228,-500.0,0.00019451,2]
[363774308,1748867451238,-500.0,0.00019451,2]
[363774310,1748867451248,-500.0,0.00019451,2]
[363774312,1748867451258,-500.0,0.00019451,2]
[363774314,1748867451267,-500.0,0.00019451,2]
[363774316,1748867451277,-500.0,0.00019451,2]
[363774317,1748867451286,-500.0,0.00019451,2]
[363774319,1748867451296,-500.0,0.00019451,2]
[363774321,1748867451306,-500.0,0.00019451,2]
[363774322,1748867451315,-500.0,0.00019451,2]
[363774323,1748867451324,-500.0,0.00019451,2]
[363774324,1748867451333,-500.0,0.00019451,2]
[363774325,1748867451343,-500.0,0.00019451,2]
[363774326,1748867451353,-500.0,0.00019451,2]
[363774327,1748867451363,-500.0,0.00019451,2]
[363774328,1748867451372,-500.0,0.00019451,2]
[363774329,1748867451382,-500.0,0.00019451,2]
[363774330,1748867451391,-500.0,0.00019451,2]
[363774332,1748867451401,-500.0,0.00019451,2]
[363774334,1748867451411,-500.0,0.00019451,2]
[363774336,1748867451420,-500.0,0.00019451,2]
[363774338,1748867451430,-500.0,0.00019451,2]
[363774340,1748867451443,-500.0,0.00019451,2]
[363774342,1748867451452,-500.0,0.00019451,2]
[363774344,1748867451462,-257.31127768,0.00019451,2]
[363774346,1748867451472,-500.0,0.00019451,2]
[363774348,1748867451482,-500.0,0.00019451,2]
[363774350,1748867451492,-500.0,0.00019451,2]
[363774352,1748867451502,-500.0,0.00019451,2]
[363774354,1748867451512,-500.0,0.00019451,2]
[363774356,1748867451522,-500.0,0.00019451,2]
[363774358,1748867451532,-500.0,0.00019451,2]
[363774360,1748867451541,-500.0,0.00019451,2]
[363774362,1748867451550,-500.0,0.00019451,2]
[363774363,1748867451560,-500.0,0.00019451,2]
[363774365,1748867451569,-500.0,0.00019451,2]
[363774367,1748867451579,-500.0,0.00019451,2]
[363774369,1748867451589,-500.0,0.00019451,2]
[363774371,1748867451598,-500.0,0.00019451,2]
[363774373,1748867451609,-650.0,0.00019451,2]
[363774375,1748867451620,-534.15152915,0.00019451,2]
[363774377,1748867451630,-500.0,0.00019451,2]
[363774379,1748867451639,-581.07553546,0.00019451,2]
[363774381,1748867451650,-500.0,0.00019451,2]
[363774383,1748867451659,-500.0,0.00019451,2]
[363774385,1748867451669,-581.07553546,0.00019451,2]
[363774387,1748867451679,-500.0,0.00019451,2]
[363774389,1748867451690,-500.0,0.00019451,2]
[363774391,1748867451699,-500.0,0.00019451,2]
[363774393,1748867451709,-500.0,0.00019451,2]
[363774395,1748867451718,-581.07553546,0.00019451,2]
[363774397,1748867451727,-420.0,0.00019452,2]
[363774398,1748867451736,-420.0,0.00019452,2]
[363774401,1748867451746,-420.0,0.00019452,2]
[363774402,1748867451756,-506.74,0.00019452,2]
[363774404,1748867451765,-1995.139131,0.00019452,2]
[363774406,1748867451774,-151.877351,0.00019452,2]
[363774408,1748867451783,-183.957081,0.00019452,2]
[363774410,1748867451792,-420.0,0.00019452,2]
[363774412,1748867451802,-2505.226592,0.00019452,2]
[363774414,1748867451811,-282.49578879,0.00019452,2]
[363774416,1748867451820,-420.0,0.00019452,2]
[363774418,1748867451829,-423.99684182,0.00019452,2]
[363774420,1748867451839,-420.0,0.00019452,2]
[363774422,1748867451849,-420.0,0.00019452,2]
[363774424,1748867451858,-420.0,0.00019452,2]
[363774426,1748867451868,-420.0,0.00019452,2]
[363774428,1748867451877,-506.36,0.00019452,2]
[363774430,1748867451886,-329.61802029,0.00019452,2]
[363774432,1748867451895,-420.0,0.00019452,2]
[363774434,1748867451905,-487.90591479,0.00019452,2]
[363774436,1748867451915,-420.0,0.00019452,2]
[363774438,1748867451925,-420.0,0.00019452,2]
[363774440,1748867451935,-420.0,0.00019452,2]
[363774442,1748867451944,-420.0,0.00019452,2]
[363774444,1748867451954,-547.67,0.00019452,2]
[363774446,1748867451963,-420.0,0.00019452,2]
[363774447,1748867451973,-550.72688201,0.00019452,2]
[363774449,1748867451985,-420.0,0.00019452,2]
[363774451,1748867451995,-420.0,0.00019452,2]
[363774453,1748867452005,-420.0,0.00019452,2]
[363774455,1748867452014,-420.0,0.00019452,2]
[363774457,1748867452023,-420.0,0.00019452,2]
[363774459,1748867452032,-420.0,0.00019452,2]
[363774461,1748867452042,-420.0,0.00019452,2]
[363774463,1748867452051,-420.0,0.00019452,2]
[363774465,1748867452060,-420.0,0.00019452,2]
[363774467,1748867452069,-420.0,0.00019452,2]
[363774469,1748867452079,-420.0,0.00019452,2]
[363774471,1748867452088,-420.0,0.00019452,2]
[363774473,1748867452097,-420.0,0.00019452,2]
[363774475,1748867452107,-420.0,0.00019452,2]
[363774477,1748867452116,-420.0,0.00019452,2]
[363774479,1748867452126,-420.0,0.00019452,2]
[363774481,1748867452135,-420.0,0.00019452,2]
[363774483,1748867452144,-420.0,0.00019452,2]
[363774485,1748867452154,-420.0,0.00019452,2]
[363774487,1748867452163,-151.46,0.00019452,2]
[363774489,1748867452173,-420.0,0.00019452,2]
[363774491,1748867452182,-420.0,0.00019452,2]
[363774493,1748867452191,-420.0,0.00019452,2]
[363774495,1748867452201,-420.0,0.00019452,2]
[363774497,1748867452210,-420.0,0.00019452,2]
[363774499,1748867452219,-420.0,0.00019452,2]
[363774500,1748867452229,-420.0,0.00019452,2]
[363774502,1748867452239,-420.0,0.00019452,2]
[363774504,1748867452248,-420.0,0.00019452,2]
[363774506,1748867452257,-420.0,0.00019452,2]
[363774508,1748867452268,-231.7,0.00019452,2]
[363774510,1748867452277,-420.0,0.00019452,2]
[363774512,1748867452287,-249.76344531,0.00019452,2]
[363774514,1748867452296,-420.0,0.00019452,2]
[363774516,1748867452305,-420.0,0.00019452,2]
[363774518,1748867452315,-420.0,0.00019452,2]
[363774520,1748867452324,-420.0,0.00019452,2]
[363774522,1748867452334,-420.0,0.00019452,2]
[363774524,1748867452343,-420.0,0.00019452,2]
[363774526,1748867452353,-317.98,0.00019452,2]
[363774528,1748867452363,-480.25,0.00019452,2]
[363774530,1748867452373,-420.0,0.00019452,2]
[363774532,1748867452383,-420.0,0.00019452,2]
[363774534,1748867452393,-165.96,0.00019452,2]
[363774536,1748867452402,-420.0,0.00019452,2]
[363774538,1748867452411,-420.0,0.00019452,2]
[363774540,1748867452421,-420.0,0.00019452,2]
[363774542,1748867452431,-420.0,0.00019452,2]
[363774544,1748867452443,-420.0,0.00019452,2]
[363774546,1748867452452,-420.0,0.00019452,2]
[363774548,1748867452462,-420.0,0.00019452,2]
[363774550,1748867452471,-420.0,0.00019452,2]
[363774552,1748867452482,-420.0,0.00019452,2]
[363774554,1748867452492,-439.2264204,0.00019452,2]
[363774556,1748867452501,-420.0,0.00019452,2]
[363774558,1748867452512,-420.0,0.00019452,2]
[363774560,1748867452522,-420.0,0.00019452,2]
[363774562,1748867452532,-420.0,0.00019452,2]
[363774564,1748867452541,-420.0,0.00019452,2]
[363774566,1748867452551,-420.0,0.00019452,2]
[363774568,1748867452561,-420.0,0.00019452,2]
[363774570,1748867452570,-226.74980386,0.00019452,2]
[363774572,1748867452580,-420.0,0.00019452,2]
[363774574,1748867452591,-508.86,0.00019452,2]
[363774576,1748867452603,-358.58,0.00019452,2]
[363774578,1748867452612,-420.0,0.00019452,2]
[363774580,1748867452622,-420.0,0.00019452,2]
[363774582,1748867452632,-560.71025987,0.00019452,2]
[363774584,1748867452641,-420.0,0.00019452,2]
[363774586,1748867452651,-420.0,0.00019452,2]
[363774588,1748867452660,-420.0,0.00019452,2]
[363774590,1748867452670,-420.0,0.00019452,2]
[363774592,1748867452679,-420.0,0.00019452,2]
[363774594,1748867452689,-420.0,0.00019452,2]
[363774595,1748867452698,-420.0,0.00019452,2]
[363774597,1748867452707,-420.0,0.00019452,2]
[363774599,1748867452716,-420.0,0.00019452,2]
[363774601,1748867452727,-420.0,0.00019452,2]
[363774603,1748867452737,-420.0,0.00019452,2]
[363774605,1748867452747,-420.0,0.00019452,2]
[363774624,1748867452916,-420.0,0.00019452,2]
[363774626,1748867452926,-420.0,0.00019452,2]
[363774628,1748867452935,-420.0,0.00019452,2]
[363774630,1748867452944,-420.0,0.00019452,2]
[363774632,1748867452954,-420.0,0.00019452,2]
[363774634,1748867452963,-336.6243349,0.00019452,2]
[363774636,1748867452973,-340.0,0.00019452,2]
[363774638,1748867452983,-326.07922905,0.00019452,2]
[363774640,1748867452993,-555.03724278,0.00019452,2]
[363774642,1748867453003,-420.0,0.00019452,2]
[363774643,1748867453013,-420.0,0.00019452,2]
[363774644,1748867453023,-420.0,0.00019452,2]
[363774645,1748867453033,-420.0,0.00019452,2]
[363774646,1748867453044,-420.0,0.00019452,2]
[363774647,1748867453054,-462.42,0.00019452,2]
[363774648,1748867453065,-958.67,0.00019452,2]
[363774649,1748867453075,-420.0,0.00019452,2]
[363774650,1748867453086,-420.0,0.00019452,2]
[363774651,1748867453097,-420.0,0.00019452,2]
[363774652,1748867453107,-2750.23,0.00019452,2]
[363774654,1748867453117,-303.25262136,0.00019452,2]
[363774656,1748867453126,-420.0,0.00019452,2]
[363774658,1748867453136,-1165.66,0.00019452,2]
[363774660,1748867453146,-420.0,0.00019452,2]
[363774662,1748867453155,-314.27774661,0.00019452,2]
[363774664,1748867453165,-420.0,0.00019452,2]
[363774665,1748867453174,-470.09,0.00019452,2]
[363774667,1748867453184,-420.0,0.00019452,2]
[363774670,1748867453194,-394.74719168,0.00019452,2]
[363774672,1748867453203,-420.0,0.00019452,2]
[363774673,1748867453213,-420.0,0.00019452,2]
[363774675,1748867453223,-420.0,0.00019452,2]
[363774678,1748867453232,-153.99,0.00019452,2]
[363774679,1748867453242,-420.0,0.00019452,2]
[363774682,1748867453252,-420.0,0.00019452,2]
[363774684,1748867453261,-420.0,0.00019452,2]
[363774686,1748867453271,-420.0,0.00019452,2]
[363774687,1748867453281,-183.47,0.00019452,2]
[363774689,1748867453290,-420.0,0.00019452,2]
[363774691,1748867453300,-14935.26,0.00019452,2]
[363774693,1748867453310,-482.83,0.00019452,2]
[363774695,1748867453319,-420.0,0.00019452,2]
[363774697,1748867453330,-479.28,0.00019452,2]
[363774699,1748867453340,-420.0,0.00019452,2]
[363774701,1748867453350,-1157.04,0.00019452,2]
[363774703,1748867453361,-420.0,0.00019452,2]
[363774705,1748867453371,-563.6,0.00019452,2]
[363774707,1748867453381,-420.0,0.00019452,2]
[363774709,1748867453391,-420.0,0.00019452,2]
[363774711,1748867453401,-568.67626722,0.00019452,2]
[363774713,1748867453411,-420.0,0.00019452,2]
[363774715,1748867453420,-493.43,0.00019452,2]
[363774717,1748867453431,-681.0,0.00019452,2]
[363774719,1748867453445,-420.0,0.00019452,2]
[363774721,1748867453455,-420.0,0.00019452,2]
[363774724,1748867453465,-420.0,0.00019452,2]
[363774726,1748867453476,-1130.25,0.00019452,2]
[363774728,1748867453485,-685.03,0.00019452,2]
[363774730,1748867453496,-420.0,0.00019452,2]
[363774732,1748867453506,-420.0,0.00019452,2]
[363774734,1748867453517,-521.31,0.00019452,2]
[363774736,1748867453528,-420.0,0.00019452,2]
[363774738,1748867453537,-420.0,0.00019452,2]
[363774740,1748867453547,-420.0,0.00019452,2]
[363774742,1748867453556,-420.0,0.00019452,2]
[363774743,1748867453566,-1489.08,0.00019452,2]
[363774745,1748867453576,-420.0,0.00019452,2]
[363774747,1748867453586,-1042.11,0.00019452,2]
[363774749,1748867453596,-420.0,0.00019452,2]
[363774751,1748867453607,-420.0,0.00019452,2]
[363774753,1748867453616,-420.0,0.00019452,2]
[363774755,1748867453626,-1690.99,0.00019452,2]
[363774757,1748867453635,-420.0,0.00019452,2]
[363774759,1748867453645,-420.0,0.00019452,2]
[363774761,1748867453655,-420.0,0.00019452,2]
[363774763,1748867453665,-420.0,0.00019452,2]
[363774765,1748867453675,-550.3,0.00019452,2]
[363774767,1748867453685,-905.78,0.00019452,2]
[363774769,1748867453694,-420.0,0.00019452,2]
[363774771,1748867453704,-420.0,0.00019452,2]
[363774773,1748867453713,-420.0,0.00019452,2]
[363774775,1748867453723,-4202.04,0.00019452,2]
[363774777,1748867453734,-726.96,0.00019452,2]
[363774779,1748867453743,-420.0,0.00019452,2]
[363774781,1748867453752,-420.0,0.00019452,2]
[363774782,1748867453762,-420.0,0.00019452,2]
[363774783,1748867453771,-420.0,0.00019452,2]
[363774784,1748867453781,-800.6,0.00019452,2]
[363774785,1748867453791,-420.0,0.00019452,2]
[363774786,1748867453801,-420.0,0.00019452,2]
[363774787,1748867453810,-978.64,0.00019452,2]
[363774788,1748867453820,-420.0,0.00019452,2]
[363774789,1748867453829,-420.0,0.00019452,2]
[363774790,1748867453839,-420.0,0.00019452,2]
[363774791,1748867453849,-420.0,0.00019452,2]
[363774792,1748867453859,-1690.87,0.00019452,2]
[363774793,1748867453868,-420.0,0.00019452,2]
[363774794,1748867453878,-420.0,0.00019452,2]
[363774795,1748867453888,-420.0,0.00019452,2]
[363774796,1748867453898,-420.0,0.00019452,2]
[363774797,1748867453908,-420.0,0.00019452,2]
[363774799,1748867453917,-420.0,0.00019452,2]
[363774801,1748867453927,-420.0,0.00019452,2]
[363774802,1748867453940,-420.0,0.00019452,2]
[363774803,1748867453954,-420.0,0.00019452,2]
[363774804,1748867453964,-4165.15,0.00019452,2]
[363774805,1748867453973,-420.0,0.00019452,2]
[363774806,1748867453983,-420.0,0.00019452,2]
[363774807,1748867453993,-420.0,0.00019452,2]
[363774809,1748867454004,-468.04,0.00019452,2]
[363774811,1748867454014,-247.57903538,0.00019452,2]
[363774812,1748867454025,-420.0,0.00019452,2]
[363774813,1748867454035,-420.0,0.00019452,2]
[363774814,1748867454045,-420.0,0.00019452,2]
[363774815,1748867454054,-420.0,0.00019452,2]
[363774816,1748867454064,-542.46,0.00019452,2]
[363774817,1748867454073,-420.0,0.00019452,2]
[363774818,1748867454083,-420.0,0.00019452,2]
[363774819,1748867454093,-420.0,0.00019452,2]
[363774820,1748867454103,-420.0,0.00019452,2]
[363774821,1748867454113,-420.0,0.00019452,2]
[363774822,1748867454123,-669.01,0.00019452,2]
[363774823,1748867454133,-420.0,0.00019452,2]
[363774824,1748867454143,-420.0,0.00019452,2]
[363774825,1748867454153,-420.0,0.00019452,2]
[363774826,1748867454169,-420.0,0.00019452,2]
[363774827,1748867454179,-667.42,0.00019452,2]
[363774828,1748867454189,-420.0,0.00019452,2]
[363774829,1748867454199,-420.0,0.00019452,2]
[363774830,1748867454209,-420.0,0.00019452,2]
[363774831,1748867454219,-1352.08,0.00019452,2]
[363774832,1748867454229,-420.0,0.00019452,2]
[363774833,1748867454238,-842.73,0.00019452,2]
[363774834,1748867454248,-1858.25,0.00019452,2]
[363774835,1748867454258,-420.0,0.00019452,2]
[363774836,1748867454267,-420.0,0.00019452,2]
[363774837,1748867454277,-554.07,0.00019452,2]
[363774838,1748867454286,-420.0,0.00019452,2]
[363774839,1748867454295,-420.0,0.00019452,2]
[363774840,1748867454304,-420.0,0.00019452,2]
[363774841,1748867454313,-420.0,0.00019452,2]
[363774842,1748867454324,-420.0,0.00019452,2]
[363774843,1748867454333,-820.8,0.00019452,2]
[363774844,1748867454343,-550.36,0.00019452,2]
[363774845,1748867454351,-420.0,0.00019452,2]
[363774846,1748867454360,-2393.79,0.00019452,2]
[363774847,1748867454368,-420.0,0.00019452,2]
[363774848,1748867454377,-420.0,0.00019452,2]
[363774849,1748867454387,-864.26,0.00019452,2]
[363774850,1748867454396,-3160.13,0.00019452,2]
[363774851,1748867454405,-420.0,0.00019452,2]
[363774852,1748867454414,-420.0,0.00019452,2]
[363774853,1748867454425,-1767.75,0.00019452,2]
[363774855,1748867454435,-420.0,0.00019452,2]
[363774857,1748867454446,-420.0,0.00019452,2]
[363774858,1748867454455,-2585.55,0.00019452,2]
[363774859,1748867454465,-420.0,0.00019452,2]
[363774860,1748867454474,-1243.7,0.00019452,2]
[363774861,1748867454486,-420.0,0.00019452,2]
[363774862,1748867454496,-420.0,0.00019452,2]
[363774863,1748867454505,-2534.59,0.00019452,2]
[363774864,1748867454516,-420.0,0.00019452,2]
[363774865,1748867454526,-486.62,0.00019452,2]
[363774866,1748867454536,-447.66490073,0.00019452,2]
[363774867,1748867454546,-420.0,0.00019452,2]
[363774868,1748867454556,-420.0,0.00019452,2]
[363774869,1748867454565,-435.96750397,0.00019452,2]
[363774870,1748867454575,-880.65,0.00019452,2]
[363774871,1748867454585,-420.0,0.00019452,2]
[363774872,1748867454595,-420.0,0.00019452,2]
[363774873,1748867454605,-420.0,0.00019452,2]
[363774874,1748867454615,-1315.03,0.00019452,2]
[363774875,1748867454624,-420.0,0.00019452,2]
[363774877,1748867454634,-420.0,0.00019452,2]
[363774879,1748867454643,-420.0,0.00019452,2]
[363774881,1748867454653,-420.0,0.00019452,2]
[363774883,1748867454662,-420.0,0.00019452,2]
[363774885,1748867454672,-472.96,0.00019452,2]
[363774887,1748867454682,-420.0,0.00019452,2]
[363774889,1748867454691,-420.0,0.00019452,2]
[363774891,1748867454701,-420.0,0.00019452,2]
[363774893,1748867454711,-462.31,0.00019452,2]
[363774895,1748867454720,-420.0,0.00019452,2]
[363774897,1748867454730,-1271.04,0.00019452,2]
[363774899,1748867454740,-648.74,0.00019452,2]
[363774901,1748867454750,-420.0,0.00019452,2]
[363774903,1748867454759,-420.0,0.00019452,2]
[363774905,1748867454769,-420.0,0.00019452,2]
[363774907,1748867454779,-420.0,0.00019452,2]
[363774909,1748867454788,-420.0,0.00019452,2]
[363774911,1748867454798,-420.0,0.00019452,2]
[363774913,1748867454807,-692.54,0.00019452,2]
[363774915,1748867454816,-3069.14,0.00019452,2]
[363774917,1748867454826,-685.63,0.00019452,2]
[363774919,1748867454836,-420.0,0.00019452,2]
[363774920,1748867454847,-1840.13,0.00019452,2]
[363774922,1748867454857,-612.55,0.00019452,2]
[363774924,1748867454869,-990.37,0.00019452,2]
[363774926,1748867454879,-420.0,0.00019452,2]
[363774928,1748867454888,-420.0,0.00019452,2]
[363774930,1748867454898,-467.8,0.00019452,2]
[363774932,1748867454907,-420.0,0.00019452,2]
[363774934,1748867454917,-420.0,0.00019452,2]
[363774936,1748867454927,-420.0,0.00019452,2]
[363774938,1748867454936,-1256.31,0.00019452,2]
[363774940,1748867454946,-420.0,0.00019452,2]
[363774942,1748867454956,-420.0,0.00019452,2]
[363774944,1748867454966,-420.0,0.00019452,2]
[363774946,1748867454976,-420.0,0.00019452,2]
[363774948,1748867454986,-420.0,0.00019452,2]
[363774950,1748867454996,-565.39,0.00019452,2]
[363774952,1748867455006,-743.93,0.00019452,2]
[363774954,1748867455016,-420.0,0.00019452,2]
[363774956,1748867455026,-420.0,0.00019452,2]
[363774958,1748867455035,-1533.64,0.00019452,2]
[363774960,1748867455045,-420.0,0.00019452,2]
[363774961,1748867455055,-723.86,0.00019452,2]
[363774963,1748867455064,-1076.54,0.00019452,2]
[363774965,1748867455074,-150.0,0.00019463,4]
[363774967,1748867455084,-366.13367363,0.00019489,2]
[363774969,1748867455094,-487.30933952,0.00019489,2]
[363774971,1748867455104,-2400.0,0.000195,7]
[363774973,1748867455114,-150.0,0.000195,2]
[363774975,1748867455124,-150.0,0.00019517,2]
[363774977,1748867455133,-196.41277909,0.00019531,2]
[363774979,1748867455143,-3758.50160772,0.00019535,2]
[363774981,1748867455153,-2122.4532337,0.00019535,2]
[363774983,1748867455162,-230.0,0.00019535,2]
[363774985,1748867455173,-150.0,0.00019583,2]
[363774987,1748867455183,-500.0,0.00019588,2]
[363774989,1748867455192,-500.0,0.00019588,2]
[363774991,1748867455201,-182.78074939,0.00019589,2]
[363774993,1748867455210,-359.5344046,0.00019589,2]
[363774995,1748867455220,-420.0,0.00019589,2]
[363774997,1748867455230,-1995.139131,0.00019589,2]
[363774999,1748867455239,-2505.226592,0.00019589,2]
[363775001,1748867455250,-420.0,0.00019589,2]
[363775003,1748867455259,-420.0,0.00019589,2]
[363775005,1748867455269,-420.0,0.00019589,2]
[363775007,1748867455278,-456.0799874,0.00019589,2]
[363775009,1748867455288,-506.36,0.00019589,2]
[363775010,1748867455297,-420.0,0.00019589,2]
[363775012,1748867455307,-420.0,0.00019589,2]
[363775013,1748867455317,-420.0,0.00019589,2]
[363775015,1748867455326,-420.0,0.00019589,2]
[363775016,1748867455336,-420.0,0.00019589,2]
[363775018,1748867455346,-547.67,0.00019589,2]
[363775020,1748867455356,-420.0,0.00019589,2]
[363775021,1748867455365,-420.0,0.00019589,2]
[363775023,1748867455375,-420.0,0.00019589,2]
[363775024,1748867455385,-420.0,0.00019589,2]
[363775026,1748867455395,-420.0,0.00019589,2]
[363775027,1748867455407,-420.0,0.00019589,2]
[363775029,1748867455418,-420.0,0.00019589,2]
[363775031,1748867455428,-420.0,0.00019589,2]
[363775032,1748867455442,-420.0,0.00019589,2]
[363775034,1748867455453,-420.0,0.00019589,2]
[363775035,1748867455463,-420.0,0.00019589,2]
[363775037,1748867455474,-459.3985586,0.00019589,2]
[363775039,1748867455483,-180.90126433,0.00019589,2]
[363775040,1748867455493,-420.0,0.00019589,2]
[363775042,1748867455502,-420.0,0.00019589,2]
[363775044,1748867455513,-462.46514663,0.00019589,2]
[363775045,1748867455522,-420.0,0.00019589,2]
[363775047,1748867455532,-217.96,0.00019589,2]
[363775048,1748867455542,-420.0,0.00019589,2]
[363775050,1748867455551,-420.0,0.00019589,2]
[363775051,1748867455561,-420.0,0.00019589,2]
[363775053,1748867455570,-420.0,0.00019589,2]
[363775054,1748867455579,-420.0,0.00019589,2]
[363775056,1748867455589,-355.01601461,0.00019589,2]
[363775058,1748867455599,-265.71908939,0.00019589,2]
[363775059,1748867455609,-420.0,0.00019589,2]
[363775061,1748867455620,-420.0,0.00019589,2]
[363775063,1748867455630,-420.0,0.00019589,2]
[363775064,1748867455639,-420.0,0.00019589,2]
[363775066,1748867455649,-420.0,0.00019589,2]
[363775068,1748867455659,-449.13399574,0.00019589,2]
[363775069,1748867455668,-420.0,0.00019589,2]
[363775071,1748867455677,-539.71625004,0.00019589,2]
[363775084,1748867455687,-420.0,0.00019589,2]
[363775086,1748867455849,-420.0,0.00019589,2]
[363775088,1748867455859,-508.52,0.00019589,2]
[363775089,1748867455868,-420.0,0.00019589,2]
[363775090,1748867455878,-480.25,0.00019589,2]
[363775091,1748867455888,-420.0,0.00019589,2]
[363775092,1748867455898,-420.0,0.00019589,2]
[363775093,1748867455907,-420.0,0.00019589,2]
[363775094,1748867455917,-420.0,0.00019589,2]
[363775095,1748867455926,-264.63276832,0.00019589,2]
[363775096,1748867455936,-420.0,0.00019589,2]
[363775097,1748867455946,-420.0,0.00019589,2]
[363775098,1748867455956,-420.0,0.00019589,2]
[363775099,1748867455966,-420.0,0.00019589,2]
[363775100,1748867455976,-420.0,0.00019589,2]
[363775101,1748867455986,-219.16,0.00019589,2]